[Event "8th Mersin Open 2024"]
[Site "Mersin"]
[Date "2024.11.11"]
[Round "2"]
[White "Baradaran Tamadon, Arian"]
[Black "Mohannad, Farhan"]
[Result "1-0"]
[ECO "C10"]
[WhiteElo "2323"]
[BlackElo "2115"]
[Annotator "RC"]
[PlyCount "113"]
[EventDate "2024.11.10"]
[EventType "swiss"]
[EventCountry "TUR"]
[SourceTitle "playchess.com"]
[Source "ChessBase"]
[SourceQuality "1"]
[TimeControl "5400+30"]

1. e4 {[%emt 0:01:00]} e6 {[%emt 0:01:00]} 2. d4 {[%emt 0:01:30]} d5 {[%emt 0:00:30]} 3. Nc3 {[%emt 0:00:30]} dxe4 {[%emt 0:00:00]} 4. Nxe4 {[%emt 0:00:30]} Nd7 {[%emt 0:00:00]} 5. Nf3 {[%emt 0:00:30]} Ngf6 {[%emt 0:00:00]} 6. Nxf6+ {[%emt 0:00:30]} Nxf6 {[%emt 0:00:00]} 7. Be3 {[%emt 0:00:30]} Bd6 {[%emt 0:00:00]} 8. Bd3 {[%emt 0:00:30]} Qe7 {[%emt 0:00:00]} 9. Qe2 {[%emt 0:04:30]} c5 {[%emt 0:08:30]} 10. Bb5+ {[%emt 0:09:30]} Bd7 {[%emt 0:01:30]} 11. O-O-O {[%emt 0:05:30]} c4 {[%emt 0:32:30]} 12. Bxc4 {[%emt 0:01:30]} O-O {[%emt 0:01:30]} 13. Bg5 {[%emt 0:03:30]} h6 {[%emt 0:11:30]} 14. Bh4 {[%emt 0:01:30]} Rfc8 {[%emt 0:05:30]} 15. Kb1 {[%emt 0:02:30]} Ba4 {[%emt 0:01:30]} 16. Bxf6 {[%emt 0:05:30]} Qxf6 {[%emt 0:00:00]} 17. Bd3 {[%emt 0:00:30]} Rc7 {[%emt 0:03:00]} 18. Rde1 {[%emt 0:14:30]} Rac8 {[%emt 0:00:30]} 19. c3 {[%emt 0:00:30]} Bc6 {[%emt 0:08:30]} 20. Be4 {[%emt 0:03:30]} b5 {[%emt 0:04:51]} 21. Bxc6 {[%emt 0:12:30]} Rxc6 {[%emt 0:00:09]} 22. Qe4 {[%emt 0:02:30]} a5 {[%emt 0:05:00]} 23. Rc1 {[%emt 0:11:40]} Bf4 {[%emt 0:06:03]} 24. Rc2 {[%emt 0:04:48]} Bd6 {[%emt 0:01:41]} 25. Rhc1 {[%emt 0:00:18]} a4 {[%emt 0:03:18]} 26. g3 {[%emt 0:02:23]} Qe7 {[%emt 0:02:01]} 27. Nd2 {[%emt 0:00:32]} a3 {[%emt 0:02:40]} 28. b3 {[%emt 0:01:02]} f5 {[%emt 0:00:05]} 29. Qd3 {[%emt 0:00:40]} e5 {[%emt 0:01:13]} 30. d5 {[%emt 0:04:14]} e4 {[%emt 0:00:54]} 31. Qxb5 {[%emt 0:00:30]} Rc5 {[%emt 0:00:30]} 32. Qa6 {[%emt 0:00:00]} Be5 {[%emt 0:00:56]} 33. b4 {[%emt 0:01:51]} Rb8 {[%emt 0:00:47]} 34. Qxa3 {[%emt 0:01:01]} Rxd5 {[%emt 0:00:25]} 35. Qb3 {[%emt 0:01:13]} Qf7 {[%emt 0:00:49]} 36. Nc4 {[%emt 0:00:11]} Bf6 {[%emt 0:00:34]} 37. Ne3 {[%emt 0:00:16]} Rdb5 {[%emt 0:00:52]} 38. Qxf7+ {[%emt 0:00:30]} Kxf7 {[%emt 0:00:00]} 39. a4 {[%emt 0:00:00]} Re5 {[%emt 0:00:04]} 40. Ka2 {[%emt 0:00:36]} g5 {[%emt 0:00:11]} 41. Rd1 {[%emt 0:00:34]} f4 {[%emt 0:00:16]} 42. Ng4 {[%emt 0:00:06]} Re6 {[%emt 0:00:03]} 43. Nxf6 {[%emt 0:00:10]} Kxf6 {[%emt 0:00:03]} 44. Kb3 {[%emt 0:00:54]} e3 {[%emt 0:00:04]} 45. fxe3 {[%emt 0:00:00]} f3 {[%emt 0:01:19]} 46. a5 {[%emt 0:00:45]} Rxe3 {[%emt 0:00:10]} 47. a6 {[%emt 0:00:22]} Re6 {[%emt 0:00:45]} 48. Ra1 {[%emt 0:00:20]} Kf5 {[%emt 0:00:38]} 49. c4 {[%emt 0:00:38]} Re3+ {[%emt 0:01:26]} 50. Rc3 {[%emt 0:00:04]} Ke4 {[%emt 0:00:22]} 51. Rxe3+ {[%emt 0:00:43]} Kxe3 {[%emt 0:00:30]} 52. a7 {[%emt 0:00:30]} Ra8 {[%emt 0:00:00]} 53. b5 {[%emt 0:00:00]} f2 {[%emt 0:00:13]} 54. b6 {[%emt 0:00:00]} g4 {[%emt 0:01:02]} 55. Kb4 {[%emt 0:00:00]} Kf3 {[%emt 0:00:15]} 56. Kb5 {[%emt 0:00:00]} Re8 {[%emt 0:00:08]} 57. a8=Q+ {[%emt 0:00:00]} 1-0

[Event "8th Mersin Open 2024"]
[Site "Mersin"]
[Date "2024.11.11"]
[Round "2"]
[White "Zeynalli, Rashad"]
[Black "Saygin, Nurettin"]
[Result "0-1"]
[ECO "B90"]
[WhiteElo "2300"]
[BlackElo "2066"]
[Annotator "RC"]
[PlyCount "82"]
[EventDate "2024.11.10"]
[EventType "swiss"]
[EventCountry "TUR"]
[SourceTitle "playchess.com"]
[Source "ChessBase"]
[SourceQuality "1"]
[TimeControl "5400+30"]

1. e4 {[%emt 0:01:00]} c5 {[%emt 0:01:00]} 2. Nf3 {[%emt 0:00:00]} d6 {[%emt 0:00:30]} 3. d4 {[%emt 0:00:00]} cxd4 {[%emt 0:00:00]} 4. Nxd4 {[%emt 0:00:30]} Nf6 {[%emt 0:00:00]} 5. Nc3 {[%emt 0:00:30]} a6 {[%emt 0:00:00]} 6. h3 {[%emt 0:00:00]} e5 {[%emt 0:00:00]} 7. Nf3 {[%emt 0:00:00]} Be7 {[%emt 0:01:30]} 8. g4 {[%emt 0:00:30]} h6 {[%emt 0:01:30]} 9. Rg1 {[%emt 0:00:30]} Qc7 {[%emt 0:03:30]} 10. a4 {[%emt 0:01:30]} b6 {[%emt 0:05:30]} 11. g5 {[%emt 0:04:30]} hxg5 {[%emt 0:00:30]} 12. Nxg5 {[%emt 0:00:30]} Bb7 {[%emt 0:02:30]} 13. Qd3 {[%emt 0:04:30]} Nbd7 {[%emt 0:04:30]} 14. Be3 {[%emt 0:04:30]} Rf8 {[%emt 0:01:30]} 15. O-O-O {[%emt 0:06:30]} Rc8 {[%emt 0:07:30]} 16. f3 {[%emt 0:00:30]} d5 {[%emt 0:11:30]} 17. exd5 {[%emt 0:01:30]} Bb4 {[%emt 0:00:30]} 18. Ne6 {[%emt 0:06:30]} fxe6 {[%emt 0:01:30]} 19. dxe6 {[%emt 0:01:30]} Nb8 {[%emt 0:04:30]} 20. Qg6+ {[%emt 0:02:30]} Ke7 {[%emt 0:00:30]} 21. Qxg7+ {[%emt 0:01:30]} Kxe6 {[%emt 0:00:30]} 22. h4 {[%emt 0:00:30]} Qxg7 {[%emt 0:00:30]} 23. Rxg7 {[%emt 0:00:30]} Nfd7 {[%emt 0:08:30]} 24. Bh3+ {[%emt 0:14:30]} Kf6 {[%emt 0:00:00]} 25. Bh6 {[%emt 0:00:30]} Rh8 {[%emt 0:05:00]} 26. Bxd7 {[%emt 0:02:30]} Rxc3 {[%emt 0:04:30]} 27. Rg4 {[%emt 0:01:30]} Rxh6 {[%emt 0:08:30]} 28. Rxb4 {[%emt 0:00:30]} Ke7 {[%emt 0:04:30]} 29. bxc3 {[%emt 0:02:30]} Nxd7 {[%emt 0:00:30]} 30. Rg4 {[%emt 0:01:30]} Rh7 {[%emt 0:00:00]} 31. Rdg1 {[%emt 0:01:30]} Bxf3 {[%emt 0:01:00]} 32. Rg7+ {[%emt 0:00:30]} Rxg7 {[%emt 0:00:30]} 33. Rxg7+ {[%emt 0:00:00]} Ke6 {[%emt 0:00:30]} 34. Kd2 {[%emt 0:00:00]} Nf6 {[%emt 0:04:30]} 35. c4 {[%emt 0:02:30]} Bc6 {[%emt 0:04:00]} 36. Ra7 {[%emt 0:01:30]} Ne4+ {[%emt 0:01:55]} 37. Ke3 {[%emt 0:02:30]} Nc5 {[%emt 0:00:30]} 38. Rg7 {[%emt 0:05:30]} Be8 {[%emt 0:02:05]} 39. Rg8 {[%emt 0:03:30]} Kf7 {[%emt 0:00:54]} 40. Rh8 {[%emt 0:02:30]} Bxa4 {[%emt 0:01:54]} 41. Rh6 {[%emt 0:02:30]} Nd7 {[%emt 0:00:32]} 0-1

[Event "8th Mersin Open 2024"]
[Site "Mersin"]
[Date "2024.11.11"]
[Round "2"]
[White "Gurbanov, Ismayil"]
[Black "Uzdemir, Ali Poyraz"]
[Result "1-0"]
[ECO "B56"]
[WhiteElo "2261"]
[BlackElo "2081"]
[Annotator "RC"]
[PlyCount "63"]
[EventDate "2024.11.10"]
[EventType "swiss"]
[EventCountry "TUR"]
[SourceTitle "playchess.com"]
[Source "ChessBase"]
[SourceQuality "1"]
[TimeControl "5400+30"]

1. e4 {[%emt 0:03:00]} c5 {[%emt 0:01:00]} 2. Nf3 {[%emt 0:00:30]} d6 {[%emt 0:00:30]} 3. d4 {[%emt 0:00:30]} cxd4 {[%emt 0:00:30]} 4. Nxd4 {[%emt 0:00:00]} Nf6 {[%emt 0:00:00]} 5. Nc3 {[%emt 0:00:00]} Nc6 {[%emt 0:00:00]} 6. Nd5 {[%emt 0:00:00]} Nxd5 {[%emt 0:08:30]} 7. exd5 {[%emt 0:05:00]} Ne5 {[%emt 0:02:30]} 8. Bb5+ {[%emt 0:09:30]} Bd7 {[%emt 0:00:30]} 9. f4 {[%emt 0:00:30]} Bxb5 {[%emt 0:09:30]} 10. fxe5 {[%emt 0:03:30]} Bc4 {[%emt 0:00:30]} 11. b3 {[%emt 0:23:30]} Bxd5 {[%emt 0:12:30]} 12. e6 {[%emt 0:14:30]} Qa5+ {[%emt 0:07:30]} 13. Bd2 {[%emt 0:10:30]} Qc5 {[%emt 0:00:30]} 14. exf7+ {[%emt 0:00:30]} Bxf7 {[%emt 0:01:30]} 15. Be3 {[%emt 0:01:30]} Qc3+ {[%emt 0:02:30]} 16. Kf2 {[%emt 0:00:30]} e5 {[%emt 0:02:30]} 17. Re1 {[%emt 0:00:30]} O-O-O {[%emt 0:20:30]} 18. Nb5 {[%emt 0:02:30]} Qa5 {[%emt 0:00:30]} 19. Nxa7+ {[%emt 0:00:30]} Kb8 {[%emt 0:00:00]} 20. a4 {[%emt 0:04:52]} d5 {[%emt 0:05:00]} 21. Nb5 {[%emt 0:00:07]} Bb4 {[%emt 0:06:36]} 22. Ba7+ {[%emt 0:02:10]} Ka8 {[%emt 0:01:36]} 23. Rxe5 {[%emt 0:00:01]} Bc3 {[%emt 0:03:07]} 24. Bd4 {[%emt 0:05:58]} Bxa1 {[%emt 0:00:30]} 25. Qxa1 {[%emt 0:00:00]} Qd2+ {[%emt 0:01:43]} 26. Re2 {[%emt 0:00:31]} Qf4+ {[%emt 0:00:04]} 27. Kg1 {[%emt 0:00:00]} Rd7 {[%emt 0:10:59]} 28. Qe1 {[%emt 0:00:50]} b6 {[%emt 0:01:54]} 29. Bxb6 {[%emt 0:00:03]} Rc8 {[%emt 0:00:17]} 30. Qa5+ {[%emt 0:00:48]} Kb8 {[%emt 0:00:05]} 31. Ba7+ {[%emt 0:00:17]} Kb7 {[%emt 0:00:30]} 32. Be3 {[%emt 0:00:00]} 1-0

[Event "8th Mersin Open 2024"]
[Site "Mersin"]
[Date "2024.11.11"]
[Round "2"]
[White "Dogan, Nazmi Can"]
[Black "Tirpan, Ceren"]
[Result "1/2-1/2"]
[ECO "B43"]
[WhiteElo "2218"]
[BlackElo "2053"]
[Annotator "RC"]
[PlyCount "196"]
[EventDate "2024.11.10"]
[EventType "swiss"]
[EventCountry "TUR"]
[SourceTitle "playchess.com"]
[Source "ChessBase"]
[SourceQuality "1"]
[TimeControl "5400+30"]

1. e4 {[%emt 0:01:00]} c5 {[%emt 0:01:00]} 2. Nf3 {[%emt 0:00:30]} e6 {[%emt 0:00:00]} 3. d4 {[%emt 0:00:30]} cxd4 {[%emt 0:00:00]} 4. Nxd4 {[%emt 0:00:00]} a6 {[%emt 0:00:30]} 5. Nc3 {[%emt 0:01:00]} b5 {[%emt 0:00:00]} 6. Bd3 {[%emt 0:00:00]} Bb7 {[%emt 0:00:00]} 7. O-O {[%emt 0:00:00]} Nc6 {[%emt 0:02:30]} 8. Nxc6 {[%emt 0:00:30]} Bxc6 {[%emt 0:00:00]} 9. Re1 {[%emt 0:00:30]} Ne7 {[%emt 0:01:00]} 10. Qh5 {[%emt 0:04:30]} Ng6 {[%emt 0:18:30]} 11. Bf1 {[%emt 0:38:30]} Qb8 {[%emt 0:11:30]} 12. a4 {[%emt 0:03:30]} Bb4 {[%emt 0:22:30]} 13. Re3 {[%emt 0:09:30]} bxa4 {[%emt 0:12:30]} 14. Nxa4 {[%emt 0:01:30]} Qe5 {[%emt 0:02:30]} 15. Qxe5 {[%emt 0:17:40]} Nxe5 {[%emt 0:00:00]} 16. h3 {[%emt 0:02:42]} O-O {[%emt 0:02:00]} 17. b3 {[%emt 0:00:24]} Bb5 {[%emt 0:09:46]} 18. Bb2 {[%emt 0:02:20]} f6 {[%emt 0:07:51]} 19. Ba3 {[%emt 0:05:30]} Bd2 {[%emt 0:03:11]} 20. Bxf8 {[%emt 0:02:48]} Bxe3 {[%emt 0:00:30]} 21. Bb4 {[%emt 0:01:14]} Bxf1 {[%emt 0:02:03]} 22. Kxf1 {[%emt 0:00:32]} Nc6 {[%emt 0:00:13]} 23. Bc5 {[%emt 0:00:25]} Bd4 {[%emt 0:00:31]} 24. Rd1 {[%emt 0:00:33]} Bxc5 {[%emt 0:03:37]} 25. Nxc5 {[%emt 0:00:30]} Ne5 {[%emt 0:00:00]} 26. Nxd7 {[%emt 0:00:00]} Nc6 {[%emt 0:00:38]} 27. Rd6 {[%emt 0:01:39]} Rc8 {[%emt 0:00:31]} 28. Nb6 {[%emt 0:02:16]} Rc7 {[%emt 0:00:06]} 29. Nc4 {[%emt 0:02:29]} Kf7 {[%emt 0:00:54]} 30. Ke2 {[%emt 0:00:15]} Ke7 {[%emt 0:00:12]} 31. Rd2 {[%emt 0:00:41]} g6 {[%emt 0:00:06]} 32. c3 {[%emt 0:00:00]} a5 {[%emt 0:01:28]} 33. Ra2 {[%emt 0:00:41]} Rb7 {[%emt 0:00:00]} 34. Ra3 {[%emt 0:00:32]} Rb5 {[%emt 0:00:00]} 35. Kd3 {[%emt 0:00:00]} f5 {[%emt 0:00:17]} 36. exf5 {[%emt 0:00:45]} gxf5 {[%emt 0:00:12]} 37. f4 {[%emt 0:00:34]} Rd5+ {[%emt 0:00:30]} 38. Kc2 {[%emt 0:00:11]} Kf6 {[%emt 0:00:11]} 39. Ra1 {[%emt 0:00:00]} Rc5 {[%emt 0:00:00]} 40. g4 {[%emt 0:01:47]} h6 {[%emt 0:00:19]} 41. Kd3 {[%emt 0:00:37]} Rd5+ {[%emt 0:00:07]} 42. Ke3 {[%emt 0:00:51]} Rb5 {[%emt 0:00:12]} 43. Ra3 {[%emt 0:00:00]} Rc5 {[%emt 0:00:11]} 44. Kd3 {[%emt 0:01:08]} Rd5+ {[%emt 0:00:30]} 45. Kc2 {[%emt 0:00:00]} Rb5 {[%emt 0:00:00]} 46. Ne3 {[%emt 0:00:22]} fxg4 {[%emt 0:02:57]} 47. hxg4 {[%emt 0:00:09]} h5 {[%emt 0:00:00]} 48. gxh5 {[%emt 0:01:14]} Rxh5 {[%emt 0:00:00]} 49. Ra1 {[%emt 0:00:12]} Rh3 {[%emt 0:02:36]} 50. Nc4 {[%emt 0:00:18]} Rh5 {[%emt 0:00:14]} 51. Kd3 {[%emt 0:00:59]} Rh3+ {[%emt 0:00:28]} 52. Ne3 {[%emt 0:00:13]} e5 {[%emt 0:00:50]} 53. fxe5+ {[%emt 0:00:36]} Kxe5 {[%emt 0:00:08]} 54. Ra4 {[%emt 0:00:20]} Kd6 {[%emt 0:00:12]} 55. Ke2 {[%emt 0:01:00]} Rh2+ {[%emt 0:00:36]} 56. Kf3 {[%emt 0:00:50]} Kc5 {[%emt 0:00:00]} 57. Ra1 {[%emt 0:01:08]} Rb2 {[%emt 0:00:08]} 58. Ra3 {[%emt 0:00:00]} Kb5 {[%emt 0:01:33]} 59. Ke4 {[%emt 0:00:25]} Rd2 {[%emt 0:00:07]} 60. Nc4 {[%emt 0:00:09]} Rd1 {[%emt 0:00:18]} 61. Ke3 {[%emt 0:00:16]} Rd7 {[%emt 0:00:56]} 62. Ra1 {[%emt 0:00:22]} Ra7 {[%emt 0:00:39]} 63. Nd6+ {[%emt 0:00:47]} Kc5 {[%emt 0:00:30]} 64. Ne4+ {[%emt 0:00:08]} Kb5 {[%emt 0:00:00]} 65. Rh1 {[%emt 0:00:08]} a4 {[%emt 0:01:17]} 66. Rh5+ {[%emt 0:00:58]} Kb6 {[%emt 0:00:05]} 67. bxa4 {[%emt 0:01:50]} Rxa4 {[%emt 0:00:30]} 68. Kd3 {[%emt 0:00:00]} Ra5 {[%emt 0:00:16]} 69. Rh6 {[%emt 0:00:00]} Rd5+ {[%emt 0:00:12]} 70. Kc2 {[%emt 0:00:00]} Re5 {[%emt 0:00:20]} 71. Nd2 {[%emt 0:00:03]} Kc7 {[%emt 0:01:18]} 72. Nc4 {[%emt 0:00:11]} Rd5 {[%emt 0:00:47]} 73. Ne3 {[%emt 0:00:45]} Rd6 {[%emt 0:00:27]} 74. Rh5 {[%emt 0:00:30]} Rd8 {[%emt 0:00:51]} 75. Nd5+ {[%emt 0:00:00]} Kd6 {[%emt 0:00:00]} 76. Nb6 {[%emt 0:01:03]} Ne5 {[%emt 0:00:43]} 77. c4 {[%emt 0:00:36]} Re8 {[%emt 0:00:42]} 78. Kc3 {[%emt 0:00:11]} Kc6 {[%emt 0:00:51]} 79. Rh6+ {[%emt 0:00:09]} Kb7 {[%emt 0:00:00]} 80. Nd5 {[%emt 0:00:40]} Rc8 {[%emt 0:00:17]} 81. Rh7+ {[%emt 0:00:25]} Ka6 {[%emt 0:00:32]} 82. Ne3 {[%emt 0:00:48]} Rd8 {[%emt 0:00:41]} 83. Rh6+ {[%emt 0:00:38]} Kb7 {[%emt 0:00:07]} 84. Kb4 {[%emt 0:01:02]} Rd3 {[%emt 0:00:17]} 85. Nd5 {[%emt 0:00:25]} Rd4 {[%emt 0:00:31]} 86. Rh7+ {[%emt 0:00:28]} Kb8 {[%emt 0:01:01]} 87. Nb6 {[%emt 0:00:18]} Rf4 {[%emt 0:00:34]} 88. Kb5 {[%emt 0:00:45]} Rf7 {[%emt 0:00:40]} 89. Rh5 {[%emt 0:00:21]} Nd7 {[%emt 0:00:19]} 90. c5 {[%emt 0:00:30]} Nxb6 {[%emt 0:00:44]} 91. Kxb6 {[%emt 0:00:43]} Rb7+ {[%emt 0:00:30]} 92. Kc6 {[%emt 0:00:30]} Rc7+ {[%emt 0:00:00]} 93. Kd6 {[%emt 0:00:00]} Kb7 {[%emt 0:00:00]} 94. Rh1 {[%emt 0:01:18]} Rc6+ {[%emt 0:00:29]} 95. Kd5 {[%emt 0:00:00]} Rg6 {[%emt 0:00:18]} 96. Rh7+ {[%emt 0:00:05]} Kc8 {[%emt 0:00:30]} 97. Kc4 {[%emt 0:00:00]} Rf6 {[%emt 0:00:00]} 98. Kb5 {[%emt 0:00:07]} Rg6 {[%emt 0:00:00]} 1/2-1/2

[Event "8th Mersin Open 2024"]
[Site "Mersin"]
[Date "2024.11.11"]
[Round "2"]
[White "Yildiz, Serdar Murat"]
[Black "Bernadskiy, Vitaliy"]
[Result "0-1"]
[ECO "B12"]
[WhiteElo "2201"]
[BlackElo "2543"]
[Annotator "TA"]
[PlyCount "146"]
[EventDate "2024.11.10"]
[EventType "swiss"]
[EventCountry "TUR"]
[SourceTitle "playchess.com"]
[Source "ChessBase"]
[SourceQuality "1"]
[TimeControl "5400+30"]

{[%evp 9,146,14,19,8,16,12,11,0,62,0,0,0,-1,-40,174,164,180,141,292,312,532,533,488,543,544,537,1112,1091,1678,1637,29987,824,1700,1939,1935,1929,1494,364,370,0,1347,718,736,713,702,82,87,12,35,49,42,51,51,50,45,62,45,51,67,56,64,29,55,22,72,53,47,37,43,40,39,40,43,39,43,41,40,39,47,8,14,0,0,0,68,11,12,13,112,52,152,152,204,0,0,0,0,0,0,0,0,0,0,0,0,-556,-254,-29955,-29956,-29958,-592,-29963,-29959,-29967,-29969,-29969,-29970,-29970,-29971,-29971,-29969,-29972,-29969,-29969,-29969,-29969,-29970,-29970,-29970,-29972,-29973,-29975,-29976,-29978,-29979,-29980,-29981,-29981,-29982]} 1. e4 {[%emt 0:01:00]} c6 {[%emt 0:01:00]} 2. d4 {[%emt 0:00:30]} d5 {[%emt 0:00:30]} 3. e5 {[%emt 0:00:00]} Bf5 {[%emt 0:00:00]} 4. h4 {[%emt 0:00:00]} a6 {[%emt 0:00:00]} 5. g4 {[%emt 0:00:30]} Bd7 {[%emt 0:00:30][%cal Oc6c5]} 6. Be3 {[%emt 0:00:30]} e6 {[%emt 0:00:30][%cal Oc6c5]} 7. Nf3 {[%emt 0:00:30]} Qc7 {[%emt 0:02:30]} 8. c4 {[%emt 0:02:30] The position is equal.} dxc4 {[%emt 0:00:30]} (8... Ne7 $11) 9. Bxc4 {[%emt 0:00:30]} (9. Nbd2 $1 $14) 9... c5 $11 {[%emt 0:01:30]} 10. d5 {[%emt 0:14:30]} exd5 {[%emt 0:00:30]} 11. Bxd5 {[%emt 0:00:30]} (11. Qxd5 Bc6 (11... Bxg4 12. Ng5 $16) 12. Qd1 Nd7 $15) 11... Bxg4 $2 {[%emt 0:01:30]} (11... Ne7 $1 $15 {keeps the upper hand.} 12. Bxf7+ Kxf7 13. Ng5+ (13. e6+ $2 Bxe6 14. Ng5+ Kg8 $19) 13... Ke8) 12. Qa4+ $18 {[%emt 0:04:30]} Bd7 {[%emt 0:02:30]} 13. Qb3 {[%emt 0:02:30][%mdl 1024] White has strong compensation.} Bc6 $2 {[%emt 0:00:00]} (13... Bf5 $16) 14. Nc3 {[%emt 0:00:00]} b5 $2 {[%emt 0:00:00]} (14... Bxd5 15. Nxd5 Qc6) 15. O-O-O {[%emt 0:02:00][%cal Od5f7] aiming for Bxf7+!} c4 {[%emt 0:01:30]} 16. Qc2 {[%emt 0:04:30]} Ne7 {[%emt 0:00:30] Wards off Qf5} 17. Qe4 {[%emt 0:10:30] Black is weak on the dark squares} Qc8 {[%emt 0:23:30]} 18. Ng5 {[%emt 0:12:30][%csl LRf7,LRh7]} Nxd5 {[%emt 0:04:30]} 19. Nxd5 {[%emt 0:00:30][%cal Oe4f5] Qf5! would kill now.} h6 {[%emt 0:11:30] [#]} 20. Nxf7 {[%emt 0:19:30]} Kxf7 {[%emt 0:01:30]} 21. Qf4+ {[%emt 0:08:17]} Kg8 {[%emt 0:01:30] [#]} 22. Nf6+ $1 {[%emt 0:00:06][%mdl 512]} Kf7 {[%emt 0:00:30]} 23. Nd7+ $2 {[%emt 0:02:14]} (23. Rhg1 {White wants to mate with Nh5+.} c3 24. Nh5+ Kg8 25. Nxg7 (25. bxc3 Rh7 $18) (25. Nf6+ Kf7 $18)) 23... Kg8 {[%emt 0:01:30] [#]} 24. Nf6+ {[%emt 0:01:26]} Kf7 $1 {[%emt 0:00:00][%cal Oc6h1] [#]} (24... gxf6 25. Rhg1+ Kh7 26. Qxf6 Rg8 27. Rxg8 Kxg8 28. Rg1+ (28. Bxh6 Bxh6+ 29. Qxh6 Qf8 $18) (28. Bxh6 Bg2 $18)) 25. e6+ $1 {[%emt 0:03:33][%mdl 512]} Qxe6 {[%emt 0:00:00]} 26. Nd7+ $1 {[%emt 0:03:52]} Kg8 {[%emt 0:01:30]} 27. Nxf8 $2 {[%emt 0:00:51]} (27. Qxf8+ $18 {is the precise move to win.} Kh7 28. Rhg1 Qxe3+ 29. fxe3 Rxf8 30. Nxf8+ Kg8 31. Ne6) 27... Qf7 {[%emt 0:01:30][%cal Oc6h1] [#]} 28. Rd8 {[%emt 0:01:24]} Nd7 {[%emt 0:06:30] Some like it hot} (28... Bxh1 29. Ne6+ (29. Rxb8 $2 Qxf4 30. Bxf4 Rxb8 $19) 29... Kh7 30. Qxf7) 29. Nxd7+ {[%emt 0:01:26][%cal Bf8d7,Bd7e5,Be5c6,Bc6d4,Bd4e2,Be2g3,Bg3e4,Be4d2,Bd2c4][%mdl 32]} Rxd8 {[%emt 0:00:30]} 30. Qxf7+ {[%emt 0:00:30]} Kxf7 {[%emt 0:00:30]} 31. Ne5+ {[%emt 0:00:30]} Kf6 {[%emt 0:00:30]} 32. Nxc6 {[%emt 0:00:00]} Rd6 {[%emt 0:00:00]} 33. Nd4 {[%emt 0:00:00]} Rhd8 {[%emt 0:00:00]} 34. Ne2 {[%emt 0:00:06]} b4 {[%emt 0:00:00]} 35. Ng3 {[%emt 0:00:22] And now Ne4+ would win.} (35. Bc5 {seems wilder.} Rd2 36. Ng3 c3 37. Bxb4 cxb2+ 38. Kb1) 35... Rd5 {[%emt 0:00:00]} 36. Rg1 {[%emt 0:00:20]} a5 {[%emt 0:00:30]} (36... b3 $11 {keeps the balance.} 37. a3 Kf7) 37. Ne4+ {[%emt 0:00:19]} Kf7 {[%emt 0:00:30]} 38. Nd2 {[%emt 0:01:07]} Rc8 {[%emt 0:00:00]} 39. Rg4 {[%emt 0:01:09]} c3 {[%emt 0:00:00]} 40. Nc4 {[%emt 0:00:07]} cxb2+ {[%emt 0:02:30]} 41. Kxb2 {[%emt 0:00:11] Black must now prevent Nb6.} Rc6 {[%emt 0:00:30]} 42. Kb3 {[%emt 0:01:47]} Rg6 {[%emt 0:03:30]} 43. Re4 {[%emt 0:00:38]} Re6 {[%emt 0:00:30] Prevents Ne5+.} 44. Rf4+ {[%emt 0:00:33]} Kg6 {[%emt 0:01:30]} 45. Rg4+ {[%emt 0:00:51]} Kh5 {[%emt 0:00:30]} 46. Rxg7 {[%emt 0:00:30]} Re4 {[%emt 0:00:00]} (46... Rc6 $11 47. Nb6 Rd3+ 48. Ka4 b3 49. axb3 (49. Kxa5 $2 b2 $19) 49... Rxe3 50. fxe3 Rxb6) 47. Nb6 {[%emt 0:01:15]} (47. Nb2 $14) 47... Rd3+ $11 {[%emt 0:01:00]} 48. Kc2 {[%emt 0:00:20]} Ra3 {[%emt 0:01:30] [#]} (48... Rd6 $11) 49. Kb2 {[%emt 0:01:31]} (49. Nd5 $1 $16 {[%cal Rd5f6] Nf6+ is the strong threat.} Kxh4 50. Kb2 (50. Bxh6 Re2+ 51. Kb1 Rxf2 $11)) 49... Kxh4 {[%emt 0:00:30]} ({Better is} 49... Raxe3 $14 50. fxe3 Rxe3) 50. Nd5 $16 {[%emt 0:00:17]} (50. Bxh6 Re2+ 51. Kb1 Raxa2 52. Bg5+ Kh3 $11) 50... a4 {[%emt 0:05:30] [#]} (50... Rg4 $16 {was necessary.} 51. Rh7 (51. Bxh6 Rxg7 52. Bxg7 Rf3 $16) (51. Rxg4+ Kxg4 52. Bxh6 Kf3 $14) 51... h5) 51. Nxb4 $2 {[%emt 0:01:46]} Raxe3 $11 {[%emt 0:00:30]} 52. fxe3 {[%emt 0:00:30] Threatens to win with Nd5.} Rxb4+ $18 {[%emt 0:00:30][%mdl 4096] Endgame. KR-KR} 53. Kc3 {[%emt 0:00:00]} Rg4 {[%emt 0:00:30]} 54. Rh7 {[%emt 0:01:18]} h5 {[%emt 0:00:30]} 55. Kd3 {[%emt 0:00:30]} Rg2 {[%emt 0:00:30]} 56. e4 $1 {[%emt 0:00:30]} Rxa2 {[%emt 0:00:00]} 57. Rg7 $2 {[%emt 0:00:40][%mdl 8192]} (57. e5 $11) 57... Ra1 {[%emt 0:00:00]} (57... a3 $142 58. e5 Ra1) 58. e5 $2 {[%emt 0:00:35]} (58. Kc4 $19) 58... a3 {[%emt 0:00:00]} 59. Kc3 {[%emt 0:00:49]} Re1 {[%emt 0:00:00]} (59... a2 $142 60. Kb2 Re1 61. Kxa2 Rxe5 62. Kb3 Rg5 63. Rd7 Kg4 64. Rd1 h4 65. Rg1+ Kh5 66. Rh1 Rg3+ 67. Kb4 h3 68. Kc5 Kh4 69. Re1 h2 70. Rh1 Rg5+ 71. Kd6 Kg3 72. Rd1 Kg2 73. Rd2+ Kh3 74. Rd3+ Kh4 75. Rd4+ Kh5 76. Rd1 Rg1 77. Rd5+ Kg6 (77... Kh6 {gets mated.} 78. Rf5 h1=Q 79. Re5 Rg6+ 80. Re6 Qd1+ 81. Ke5 Qe1+ 82. Kd6 Rxe6+ 83. Kc5 Qe4 84. Kb5 Rc6 85. Ka5 Qb1 86. Ka4 Ra6#) 78. Ke5 h1=Q (78... h1=R 79. Kf4 $19) 79. Kd6 Rc1 (79... Rd1 {is a self mate.} 80. Rxd1 Qxd1+ 81. Kc5 Kf6 82. Kc6 Ke5 83. Kc5 Qa4 84. Kb6 Kd6 85. Kb7 Qb5+ 86. Ka7 Kc7 87. Ka8 Qb8#) 80. Rc5 Qd1+ (80... Rxc5 {leads to mate.} 81. Kxc5 Qe4 82. Kb5 Kf5 83. Kb6 Qc4 84. Ka5 Ke6 85. Kb6 Kd6 86. Ka5 Qb3 87. Ka6 Kc6 88. Ka7 Qb7#) 81. Kc6 Qf3+ 82. Kd6 Qf8+ 83. Kd7 Qxc5 84. Ke6 Re1+ 85. Kd7 Re7+ 86. Kd8 Qc7#) 60. Kb3 {[%emt 0:00:00]} Rxe5 {[%emt 0:01:30] Black mates.} 61. Kxa3 {[%emt 0:00:00]} Rg5 {[%emt 0:00:30]} 62. Rd7 {[%emt 0:00:33]} Kg3 {[%emt 0:00:00]} 63. Rd3+ {[%emt 0:01:00]} Kh2 {[%emt 0:00:00]} 64. Rd2+ {[%emt 0:00:00]} Rg2 {[%emt 0:00:30]} 65. Rd4 {[%emt 0:00:00]} Rg4 {[%emt 0:00:30]} 66. Rd2+ {[%emt 0:00:21]} Kg3 {[%emt 0:00:30]} 67. Rd3+ {[%emt 0:00:01]} Kf2 {[%emt 0:00:30]} 68. Rd2+ {[%emt 0:00:13]} Ke3 {[%emt 0:00:30]} 69. Rh2 {[%emt 0:00:00]} h4 {[%emt 0:00:30]} 70. Kb3 {[%emt 0:00:24]} Kf3 {[%emt 0:00:30]} 71. Kc3 {[%emt 0:00:30]} Kg3 {[%emt 0:00:00]} 72. Rh1 {[%emt 0:00:00]} h3 {[%emt 0:00:00]} 73. Rg1+ {[%emt 0:00:00]} Kf3 {[%emt 0:00:00] What a fight!   Weighted Error Value: White=0.86/Black=0.59.  Loses game:     	White=1     	Black=1      Missed win:     	White=1     	---        Mistake:       	White=4     	Black=9      Inaccurate:     	White=5     	Black=3      OK:         	White=15    	Black=16     Best:        	White=7     	Black=4      Strong:       	White=1     	Black=1} 0-1